bitfinex-derivatives/quotes_BNBF0:USTF0_20250111
["timestamp","ask_amount","ask_price","bid_price","bid_amount"]
[1736565951720,1.0836816,691.09,689.59,0.2900274]
[1736565955223,0.2893351,691.24,689.59,0.2900274]
[1736565955224,1.0836816,691.0,689.66,1.30112557]
[1736565956324,1.0836816,691.06,689.67,0.28999376]
[1736565957226,1.0836816,691.07,689.67,0.28999376]
[1736565958124,1.0836816,691.17,689.67,0.28999376]
[1736565959024,1.0836816,691.18,689.67,0.28999376]
[1736565959623,0.28936441,691.17,689.67,0.28999376]
[1736565973033,1.37304601,691.17,689.67,0.28999376]
[1736565973829,0.28936441,691.17,689.67,0.28999376]
[1736565976433,0.26602474,691.16,689.67,0.28999376]
[1736565977031,0.28936441,691.17,689.7,1.30112557]
[1736565977032,1.0836816,691.11,689.7,1.30112557]
[1736565977427,1.0836816,691.11,689.71,0.28997694]
[1736565977933,1.0836816,691.11,689.73,1.30112557]
[1736565979235,1.0836816,691.12,689.74,1.30112557]
[1736565980035,1.0836816,691.12,689.71,0.28997694]
[1736565980036,1.0836816,691.13,689.8,1.30112557]
[1736565980831,1.0836816,691.14,689.8,1.30112557]
[1736565982036,1.0836816,691.14,689.81,0.2899349]
[1736565984037,1.0836816,691.15,689.81,0.2899349]
[1736565985038,1.37304601,691.17,689.81,0.2899349]
[1736565987437,0.28936441,691.17,689.81,0.2899349]
[1736565989539,0.28936441,691.17,689.81,1.59106047]
[1736565990339,0.28936441,691.17,689.81,0.2899349]
[1736565992337,0.28936441,691.17,689.81,3.1494921]
[1736565992535,0.28936441,691.17,689.81,6.38982276]
[1736565992737,0.28936441,691.17,689.82,3.24033066]
[1736565992937,0.28936441,691.17,689.83,0.2899265]
[1736566011754,1.0836816,691.16,689.86,1.30112557]
[1736566012055,1.0836816,691.16,689.87,0.28990969]
[1736566012555,1.0836816,691.15,689.88,1.30112557]
[1736566012756,1.0836816,691.15,689.89,0.28990128]
[1736566013658,1.0836816,691.13,689.9,1.30112557]
[1736566013852,1.0836816,691.13,689.9,1.59102265]
[1736566014051,0.28936441,691.17,689.9,0.28989708]
[1736566018962,1.08037209,691.16,689.9,0.28989708]
[1736566023962,1.08037209,691.15,689.9,0.28989708]
[1736566024666,1.08037209,691.16,689.9,0.28989708]
[1736566026570,1.08037209,691.14,689.9,0.28989708]
[1736566029274,1.08037209,691.11,689.9,0.28989708]
[1736566030378,1.08037209,691.06,689.9,0.28989708]
[1736566031279,1.08037209,691.08,689.9,0.28989708]
[1736566032082,1.08037209,691.12,689.9,0.28989708]
[1736566033075,1.08037209,691.05,689.9,0.28989708]
[1736566033978,0.28936441,691.17,689.9,0.28989708]
[1736566072908,1.3697365,691.17,689.9,0.28989708]
[1736566074112,1.08037209,691.15,689.9,0.28989708]
[1736566075408,1.08037209,691.14,689.9,0.28989708]
[1736566076214,1.08037209,691.12,689.9,0.28989708]
[1736566077151,0.28936441,691.17,689.9,0.28989708]
[1736566077152,1.08037209,691.08,689.9,0.28989708]
[1736566078137,1.08037209,691.11,689.9,0.28989708]
[1736566078945,1.08037209,691.1,689.9,0.28989708]
[1736566079851,1.08037209,691.09,689.9,0.28989708]
[1736566080544,1.08037209,691.08,689.9,0.28989708]
[1736566082745,1.08037209,691.07,689.9,0.28989708]
[1736566083737,1.08037209,691.09,689.9,1.59149893]
[1736566084419,1.08037209,691.09,689.91,1.30160185]
[1736566085412,1.08037209,691.09,689.9,0.28989708]
[1736566085614,1.08037209,691.05,689.9,0.28989708]
[1736566089921,1.08037209,691.04,689.9,0.28989708]
[1736566093022,1.08037209,691.03,689.9,0.28989708]
[1736566095220,1.08037209,691.04,689.9,0.28989708]
[1736566096122,1.08037209,691.03,689.9,0.28989708]
[1736566097321,0.28936441,691.17,689.9,0.28989708]
[1736566097322,1.08037209,691.04,689.9,0.28989708]
[1736566098924,1.08037209,691.03,689.9,2.01198158]
[1736566099128,1.08037209,691.03,689.9,3.54461388]
[1736566100226,1.08037209,691.03,689.9,0.28989708]
[1736566101428,1.08037209,691.1,689.95,1.30160185]
[1736566103734,1.08037209,691.1,689.96,1.30160185]
[1736566104739,1.08037209,691.11,689.97,1.30160185]
[1736566105540,1.08037209,691.11,689.96,1.30160185]
[1736566106746,1.08037209,691.12,689.98,1.30160185]
[1736566107941,1.08037209,691.13,689.98,1.30160185]
[1736566108743,1.08037209,691.13,689.97,4.55631865]
[1736566109644,1.08037209,691.03,689.97,3.2547168]
[1736566110038,1.08037209,691.03,689.97,1.5326323]
[1736566110239,1.08037209,691.03,689.96,2.85651192]
[1736566110441,1.08037209,691.03,689.92,1.5326323]
[1736566110637,1.08037209,691.03,689.9,0.28989708]
[1736566111442,1.08037209,691.05,689.9,0.28989708]
[1736566112845,0.28936441,691.17,689.9,0.28989708]
[1736566120352,0.28936441,691.17,689.96,1.30160185]
[1736566120548,0.28936441,691.17,689.97,0.28986767]
[1736566127248,1.08037209,691.4,689.97,0.28986767]
[1736566128355,1.08037209,691.41,689.97,0.28986767]
[1736566129255,1.08037209,691.43,689.97,0.28986767]
[1736566130055,1.08037209,691.45,689.97,0.28986767]
[1736566130456,0.26591037,691.44,689.97,0.28986767]
[1736566130655,1.36961932,691.45,689.97,0.28986767]
[1736566130855,0.26591792,691.44,689.97,0.28986767]
[1736566131156,1.08037209,691.4,689.97,0.28986767]
[1736566132858,1.08037209,691.42,689.97,0.28986767]
[1736566133860,1.08037209,691.4,689.97,0.28986767]
[1736566134657,1.08037209,691.42,689.97,0.28986767]
[1736566137560,1.08037209,691.39,689.97,0.28986767]
[1736566138460,1.08037209,691.41,689.97,0.28986767]
[1736566138660,0.26592763,691.4,689.97,0.28986767]
[1736566139059,1.08037209,691.41,689.97,0.28986767]
[1736566139360,0.26592517,691.4,689.97,0.28986767]
[1736566139561,1.08037209,691.36,689.97,0.28986767]
[1736566140555,1.08037209,691.34,689.97,0.28986767]
[1736566141562,1.08037209,691.33,689.97,0.28986767]
[1736566142461,1.08037209,691.32,689.97,0.28986767]
[1736566143462,1.08037209,691.29,689.97,0.28986767]
[1736566144261,1.08037209,691.28,689.97,0.28986767]
[1736566145363,1.08037209,691.27,689.97,0.28986767]
[1736566146361,1.08037209,691.21,689.97,0.28986767]
[1736566148263,1.08037209,691.2,689.97,0.28986767]
[1736566152764,0.89327434,691.43,689.97,0.28986767]
[1736566152765,1.08037209,691.19,689.97,0.28986767]
[1736566153571,1.08037209,691.28,689.99,1.30160185]
[1736566153772,1.08037209,691.28,689.99,1.59146112]
[1736566154272,1.08037209,691.28,689.99,0.28985927]
[1736566155173,1.08037209,691.28,689.99,1.59146112]
[1736566156173,0.2892556,691.43,689.99,1.59146112]
[1736566156174,1.08037209,691.27,690.01,1.30160185]
[1736566157577,1.08037209,691.29,689.99,1.59146112]
[1736566158578,0.2892556,691.43,689.99,1.59146112]
[1736566158579,1.08037209,691.27,689.99,1.59146112]
[1736566158778,1.08037209,691.27,689.99,0.28985927]
[1736566159377,1.08037209,691.26,689.99,0.28985927]
[1736566161082,1.08037209,691.27,689.99,0.28985927]
[1736566162183,1.08037209,691.18,689.99,0.28985927]
[1736566164186,1.08037209,691.17,689.99,0.28985927]
[1736566165886,1.08037209,691.16,689.99,0.28985927]
[1736566168483,1.08037209,691.23,689.99,0.28985927]
[1736566168987,1.08037209,691.22,689.99,0.28985927]
[1736566171189,1.08037209,691.21,689.99,1.59146112]
[1736566172184,1.08037209,691.21,690.0,1.30160185]
[1736566173690,1.08037209,691.19,690.0,1.30160185]
[1736566174295,1.08037209,691.19,690.01,1.30160185]
[1736566175291,1.08037209,691.19,690.0,1.30160185]
[1736566175490,1.08037209,691.19,690.0,4.15811377]
[1736566175690,1.08037209,691.19,690.0,7.41462317]
[1736566175989,1.08037209,691.19,690.01,4.55811125]
[1736566176594,1.08037209,691.12,690.01,3.2565094]
[1736566176788,1.08037209,691.12,690.01,1.53340252]
[1736566176988,1.08037209,691.12,690.02,2.85651192]
[1736566178098,1.08037209,691.12,690.01,1.53340252]
[1736566178392,1.08037209,691.12,689.99,0.28985927]
[1736566179396,0.89340706,691.42,689.99,0.28985927]
[1736566179397,1.08037209,691.13,689.99,0.28985927]
[1736566180599,1.08037209,691.15,689.99,0.28985927]
[1736566181193,1.08037209,691.18,689.99,0.28985927]
[1736566183194,1.08037209,691.22,689.99,0.28985927]
[1736566184802,1.08037209,691.23,689.99,0.28985927]
[1736566187005,1.08037209,691.24,689.99,0.28985927]
[1736566188306,1.08037209,691.22,689.99,0.28985927]
[1736566190201,0.2892556,691.43,689.99,1.59146112]
[1736566190202,1.08037209,691.19,689.99,1.59146112]
[1736566191107,0.89339569,691.42,689.99,1.59146112]
[1736566191108,1.08037209,691.24,690.03,1.30160185]
[1736566191408,1.08037209,691.24,690.03,1.59144432]
[1736566195512,1.08037209,691.25,690.03,1.59144432]
[1736566196815,1.08037209,691.24,690.03,1.59144432]
[1736566197014,1.08037209,691.24,690.03,4.44795624]
[1736566197214,1.08037209,691.24,690.03,7.70446564]
[1736566197509,1.08037209,691.24,690.04,3.2565094]
[1736566198715,1.08037209,691.24,690.04,6.11302132]
[1736566198916,1.08037209,691.24,690.05,1.53340252]
[1736566199617,1.08037209,691.18,690.05,1.53340252]
[1736566200520,1.08037209,691.16,690.05,1.53340252]
[1736566200720,1.08037209,691.16,690.03,0.28984247]
[1736566204721,1.08037209,691.15,690.03,0.28984247]
[1736566206019,1.08037209,691.19,690.03,0.28984247]
[1736566206921,1.08037209,691.2,690.03,0.28984247]
[1736566208625,1.08037209,691.17,690.03,0.28984247]
[1736566209724,1.08037209,691.21,690.03,0.28984247]
[1736566211327,0.2892556,691.43,690.03,0.28984247]
[1736566211328,1.08037209,691.23,690.03,0.28984247]
[1736566212628,1.08037209,691.24,690.03,0.28984247]
[1736566213628,1.08037209,691.2,690.03,0.28984247]
[1736566214626,1.08037209,691.27,690.03,0.28984247]
[1736566215327,1.08037209,691.3,690.03,0.28984247]
[1736566215927,1.08037209,691.25,690.03,0.28984247]
[1736566216627,1.08037209,691.26,690.03,0.28984247]
[1736566217427,1.08037209,691.27,690.03,0.28984247]
[1736566218521,1.08037209,691.26,690.03,0.28984247]
[1736566219528,1.08037209,691.29,690.03,0.28984247]
[1736566220326,1.08037209,691.3,690.03,0.28984247]
[1736566221026,1.08037209,691.33,690.03,0.28984247]
[1736566222131,1.08037209,691.4,690.03,0.28984247]
[1736566223133,1.08037209,691.37,690.03,0.28984247]
[1736566224133,1.08037209,691.37,690.03,1.59144432]
[1736566225031,0.2892556,691.43,690.03,0.28984247]
[1736566225032,1.08037209,691.38,690.03,0.28984247]
[1736566226032,1.08037209,691.41,690.05,1.30160185]
[1736566226428,1.08037209,691.41,690.06,0.28982986]
[1736566227234,0.2892556,691.43,690.06,0.28982986]
[1736566248348,0.2892556,691.43,690.06,1.59143171]
[1736566248946,0.2892556,691.43,690.1,1.30160185]
[1736566249143,0.2892556,691.43,690.11,0.28980887]
[1736566249952,0.2892556,691.43,690.11,1.59141072]
[1736566250855,1.08037209,691.41,690.11,0.28980887]
[1736566251947,1.08037209,691.65,690.11,0.28980887]
[1736566253154,1.08037209,691.65,690.11,1.59141072]
[1736566253950,1.08037209,691.68,690.11,0.28980887]
[1736566255050,0.89299101,692.05,690.11,0.28980887]
[1736566255051,1.08037209,691.7,690.11,0.28980887]
[1736566255846,1.08037209,691.7,690.11,3.54736694]
[1736566256052,1.08037209,691.72,690.11,3.54736694]
[1736566257152,1.08037209,691.71,690.11,0.28980887]
[1736566257953,1.08037209,691.7,690.11,0.28980887]
[1736566258951,1.08037209,691.77,690.11,0.28980887]
[1736566259752,1.08037209,691.76,690.11,0.28980887]
[1736566260848,1.08037209,691.77,690.11,0.28980887]
[1736566261055,0.26579822,691.75,690.11,0.28980887]
[1736566261255,0.26579973,691.74,690.11,0.28980887]
[1736566261453,0.5549257,691.74,690.11,0.28980887]
[1736566261652,0.26579973,691.73,690.11,0.28980887]
[1736566261853,1.08037209,691.66,690.14,1.30160185]
[1736566262257,0.26579973,691.65,690.14,1.30160185]
[1736566262951,1.08037209,691.66,690.15,0.28979207]
[1736566263153,0.26584752,691.65,690.15,0.28979207]
[1736566263352,1.08037209,691.59,690.15,0.28979207]
[1736566265358,0.28912597,691.74,690.15,0.28979207]
[1736566265359,1.08037209,691.6,690.15,0.28979207]
[1736566266156,1.08037209,691.52,690.15,0.28979207]
[1736566267060,1.08037209,691.53,690.15,0.28979207]
[1736566268062,1.08037209,691.52,690.15,0.28979207]
[1736566269264,1.08037209,691.55,690.15,0.28979207]
[1736566270161,0.28912597,691.74,690.15,0.28979207]
[1736566270162,1.08037209,691.61,690.15,0.28979207]
[1736566271361,1.08037209,691.64,690.15,1.59139392]
[1736566272362,1.08037209,691.66,690.16,1.30160185]
[1736566272565,1.08037209,691.66,690.17,0.28978367]
[1736566273165,1.08037209,691.65,690.17,0.28978367]
[1736566274062,1.08037209,691.66,690.17,0.28978367]
[1736566275066,1.08037209,691.64,690.17,0.28978367]
[1736566275965,1.08037209,691.68,690.17,0.28978367]
[1736566276861,1.08037209,691.69,690.17,0.28978367]
[1736566278069,0.28912597,691.74,690.17,0.28978367]
[1736566278070,1.08037209,691.68,690.17,0.28978367]
[1736566278866,1.08037209,691.71,690.17,0.28978367]
[1736566280065,0.28912597,691.74,690.17,0.28978367]
[1736566280667,0.28912597,691.74,690.22,1.30160185]
[1736566281267,0.28912597,691.74,690.24,0.28975428]
[1736566281768,0.28912597,691.74,690.24,1.59135613]
[1736566282563,0.28912597,691.74,690.24,0.28975428]
[1736566305381,1.36599776,691.74,690.24,0.28975428]
[1736566306076,1.07687179,691.72,690.24,0.28975428]
[1736566308482,1.07687179,691.7,690.25,1.29629837]
[1736566308679,1.07687179,691.7,690.26,0.28974589]
[1736566309280,0.28912597,691.74,690.26,0.28974589]
[1736566315783,1.07687179,691.71,690.26,0.28974589]
[1736566318284,1.07687179,691.73,690.26,0.28974589]
[1736566318986,1.07687179,691.62,690.3,1.29629837]
[1736566319183,1.07687179,691.62,690.31,0.2897249]
[1736566320190,0.28912597,691.74,690.31,0.2897249]
[1736566320191,1.07687179,691.63,690.32,1.29629837]
[1736566320390,1.07687179,691.63,690.33,0.28971651]
[1736566321291,0.28912597,691.74,690.33,0.28971651]
[1736566321292,1.07687179,691.64,690.33,1.58601488]
[1736566322590,1.07687179,691.62,690.33,0.28971651]
[1736566323388,1.07687179,691.63,690.33,0.28971651]
[1736566324497,1.07687179,691.66,690.33,0.28971651]
[1736566325398,0.28912597,691.74,690.33,0.28971651]
[1736566325399,1.07687179,691.62,690.33,0.28971651]
[1736566326300,1.07687179,691.63,690.33,0.28971651]
[1736566328800,1.07687179,691.65,690.33,0.28971651]
[1736566329602,1.07687179,691.66,690.33,0.28971651]
[1736566330396,1.07687179,691.64,690.33,0.28971651]
[1736566332302,1.07687179,691.65,690.33,0.28971651]
[1736566333099,1.07687179,691.69,690.33,0.28971651]
[1736566334105,0.28912597,691.74,690.33,0.28971651]
[1736566336603,1.36599776,691.74,690.33,0.28971651]
[1736566337206,1.07687179,691.72,690.33,0.28971651]
[1736566338408,1.36599776,691.74,690.33,0.28971651]
[1736566338807,1.07687179,691.73,690.33,0.28971651]
[1736566341110,1.07687179,691.68,690.33,0.28971651]
[1736566342512,1.07687179,691.67,690.33,0.28971651]
[1736566343613,1.07687179,691.64,690.33,0.28971651]
[1736566345510,1.07687179,691.63,690.33,0.28971651]
[1736566346512,1.07687179,691.62,690.33,0.28971651]
[1736566347415,1.07687179,691.64,690.33,0.28971651]
[1736566348417,1.07687179,691.73,690.35,1.29629837]
[1736566348617,1.07687179,691.73,690.36,0.28970392]
[1736566349216,1.36599776,691.74,690.36,0.28970392]
[1736566350017,0.28912597,691.74,690.36,0.28970392]
[1736566351116,1.07687179,691.73,690.39,1.29629837]
[1736566351314,1.07687179,691.73,690.4,0.28968713]
[1736566352118,1.07687179,691.72,690.4,0.28968713]
[1736566353211,1.07687179,691.72,690.41,1.29629837]
[1736566353419,1.07687179,691.72,690.42,0.28967874]
[1736566355320,1.36599776,691.74,690.42,0.28967874]
[1736566355823,0.28912597,691.74,690.42,0.28967874]
[1736566362121,1.51080464,692.32,690.42,0.28967874]
[1736566362322,0.28889209,692.3,690.42,0.28967874]
[1736566362517,0.26567125,692.29,690.42,0.28967874]
[1736566362722,1.07762156,692.06,690.42,0.28967874]
[1736566362922,0.28890044,692.28,690.42,0.28967874]
[1736566382339,0.26562534,692.27,690.42,0.28967874]
[1736566382537,0.26562464,692.26,690.42,0.28967874]
[1736566382739,0.28891296,692.25,690.42,0.28967874]
[1736566383737,0.26563708,692.24,690.42,0.28967874]
[1736566383934,0.28892131,692.23,690.42,0.28967874]
[1736566384636,0.26564156,692.22,690.42,0.28967874]
[1736566385034,0.28892966,692.21,690.42,0.28967874]
[1736566385241,0.26564156,692.2,690.42,0.28967874]
[1736566385544,1.07411176,692.18,690.42,0.28967874]
[1736566385848,0.55459963,692.17,690.42,0.28967874]
[1736566386039,0.26565328,692.16,690.42,0.28967874]
[1736566386242,0.2889547,692.15,690.42,0.28967874]
[1736566386436,0.26565328,692.14,690.42,0.28967874]
[1736566386637,0.28896305,692.13,690.48,1.29283618]
[1736566386840,0.26565328,692.12,690.5,0.28964518]
[1736566387137,0.2889714,692.11,690.5,0.28964518]
[1736566387340,0.26565328,692.1,690.5,0.28964518]
[1736566387644,0.28897975,692.09,690.5,0.28964518]
[1736566387844,0.26565328,692.08,690.5,0.28964518]
[1736566388051,0.2889881,692.07,690.5,0.28964518]
[1736566388344,0.26565328,692.06,690.5,0.28964518]
[1736566388542,0.26567274,692.05,690.5,0.28964518]
[1736566389336,0.28899228,692.06,690.5,0.28964518]
[1736566390745,0.26570899,692.05,690.5,0.28964518]
[1736566390948,0.28900063,692.04,690.5,0.28964518]
[1736566391348,0.26572645,692.03,690.5,0.28964518]
[1736566391846,0.28900898,692.02,690.5,0.28964518]
[1736566392046,0.26572645,692.01,690.5,0.28964518]
[1736566392241,0.28901734,692.0,690.5,0.28964518]
[1736566392647,0.26574857,691.99,690.5,0.28964518]
[1736566392853,0.28902569,691.98,690.5,0.28964518]
[1736566393053,0.26574857,691.97,690.5,0.28964518]
[1736566393354,1.3631458,691.96,690.5,0.28964518]
[1736566393553,0.55478679,691.95,690.5,0.28964518]
[1736566393753,0.55479097,691.94,690.5,0.28964518]
[1736566393959,0.55479514,691.93,690.5,0.28964518]
[1736566394157,0.55479932,691.92,690.5,0.28964518]
[1736566394452,1.33986033,691.91,690.5,0.28964518]
[1736566394655,0.55480768,691.9,690.5,0.28964518]
[1736566394857,0.28906329,691.89,690.5,0.28964518]
[1736566402564,0.26575213,691.88,690.5,0.28964518]
[1736566402765,0.28907164,691.87,690.5,0.28964518]
[1736566403465,0.26575256,691.86,690.5,0.28964518]
[1736566404870,0.26574907,691.85,690.5,0.28964518]
[1736566405069,0.28907164,691.87,690.5,0.28964518]
[1736566405262,0.26574855,691.86,690.5,0.28964518]
[1736566405871,0.28907164,691.87,690.5,0.28964518]
[1736566415776,0.26575671,691.86,690.5,0.28964518]
[1736566416076,0.28908,691.85,690.5,0.28964518]
[1736566416279,0.26575671,691.84,690.5,0.28964518]
[1736566416769,0.28908,691.85,690.5,0.28964518]
[1736566417376,0.26575788,691.84,690.5,0.28964518]
[1736566418374,1.36230056,691.85,690.5,0.28964518]
[1736566418570,0.26575573,691.84,690.5,0.28964518]
[1736566419077,1.36230056,691.85,690.5,0.28964518]
[1736566419078,1.07322056,691.83,690.5,0.28964518]
[1736566419675,0.28908,691.85,690.5,0.28964518]
[1736566421777,1.07322056,691.82,690.5,0.28964518]
[1736566422875,1.07322056,691.81,690.5,0.28964518]
[1736566423576,1.07322056,691.82,690.5,0.28964518]
[1736566424376,1.07322056,691.83,690.5,0.28964518]
[1736566425173,1.07322056,691.8,690.5,0.28964518]
[1736566426279,0.28908,691.85,690.5,0.28964518]
[1736566426280,1.07322056,691.79,690.5,0.28964518]
[1736566427179,0.28908,691.85,690.5,0.28964518]
[1736566427180,1.07322056,691.78,690.5,0.28964518]
[1736566428279,1.07322056,691.82,690.5,0.28964518]
[1736566429684,1.07322056,691.74,690.52,1.2934836]
[1736566431480,1.07322056,691.75,690.52,1.2934836]
[1736566432881,1.07322056,691.73,690.5,0.28964518]
[1736566433475,1.07322056,691.72,690.5,0.28964518]
[1736566435178,0.28908,691.85,690.5,0.28964518]
[1736566435179,1.07322056,691.7,690.5,0.28964518]
[1736566436179,1.07322056,691.71,690.5,0.28964518]
[1736566438088,1.07322056,691.73,690.5,0.28964518]
[1736566439184,1.07322056,691.8,690.53,1.2934836]
[1736566440184,1.07322056,691.81,690.53,1.2934836]
[1736566441284,0.28908,691.85,690.5,0.28964518]
[1736566441285,1.36230056,691.85,690.57,1.2934836]
[1736566441884,0.28908,691.85,690.55,1.2934836]
[1736566442889,0.28908,691.85,690.56,1.2934836]
[1736566443988,0.28908,691.85,690.52,3.23386999]
[1736566443989,1.07322056,691.82,690.52,3.23386999]
[1736566444190,1.07322056,691.82,690.52,1.52258333]
[1736566444989,1.07322056,691.82,690.51,3.23386999]
[1736566445290,1.07322056,691.78,690.51,3.23386999]
[1736566446182,1.07322056,691.69,690.51,3.23386999]
[1736566446586,1.07322056,691.69,690.5,0.28964518]
[1736566447691,0.28908,691.85,690.5,0.28964518]
[1736566447692,1.07322056,691.71,690.5,0.28964518]
[1736566448488,0.28908,691.85,690.5,0.28964518]
[1736566448489,1.07322056,691.72,690.5,0.28964518]
[1736566450085,1.07322056,691.71,690.5,0.28964518]
[1736566451091,1.07322056,691.72,690.5,0.28964518]
[1736566451889,1.07322056,691.73,690.5,0.28964518]
[1736566453589,1.07322056,691.72,690.5,0.28964518]
[1736566455590,0.28908,691.85,690.5,0.28964518]
[1736566455591,1.07322056,691.68,690.5,0.28964518]
[1736566456485,1.07322056,691.64,690.5,0.28964518]
[1736566457587,1.07322056,691.68,690.5,0.28964518]
[1736566458495,1.07322056,691.7,690.5,0.28964518]
[1736566459194,1.07322056,691.71,690.5,0.28964518]
[1736566460188,1.07322056,691.72,690.5,0.28964518]
[1736566461198,1.07322056,691.79,690.5,0.28964518]
[1736566461395,0.28910925,691.78,690.5,0.28964518]
[1736566466704,0.26580184,691.77,690.5,0.28964518]
[1736566467002,0.26580184,691.76,690.5,0.28964518]
[1736566467200,1.07322056,691.74,690.5,0.28964518]
[1736566467402,0.26580184,691.73,690.5,0.28964518]
[1736566468407,1.07322056,691.72,690.5,0.28964518]
[1736566469508,1.07322056,691.63,690.5,0.28964518]
[1736566473304,1.07322056,691.62,690.5,0.28964518]
[1736566474209,1.07322056,691.61,690.5,0.28964518]
[1736566475213,1.07322056,691.62,690.5,0.28964518]
[1736566476107,0.28912179,691.75,690.5,0.28964518]
[1736566476108,1.07322056,691.67,690.5,0.28964518]
[1736566477217,1.07322056,691.65,690.5,0.28964518]
[1736566479420,1.07322056,691.64,690.5,0.28964518]
[1736566481621,1.07322056,691.6,690.5,0.28964518]
[1736566482223,1.07322056,691.61,690.5,0.28964518]
[1736566483022,1.07322056,691.6,690.5,0.28964518]
[1736566483720,1.07322056,691.57,690.5,0.28964518]
[1736566485021,1.36234235,691.75,690.5,0.28964518]
[1736566485022,1.07322056,691.56,690.5,0.28964518]
[1736566486228,0.28912179,691.75,690.5,0.28964518]
[1736566486229,1.07322056,691.69,690.5,0.28964518]
[1736566487122,1.07322056,691.72,690.5,0.28964518]
[1736566489826,0.28912179,691.75,690.5,0.28964518]
[1736566510450,1.36234235,691.75,690.5,0.28964518]
[1736566511048,1.07322056,691.74,690.5,0.28964518]
[1736566511944,1.07322056,691.73,690.5,0.28964518]
[1736566512951,0.28912179,691.75,690.5,0.28964518]
[1736566513950,1.07322056,691.73,690.5,0.28964518]
[1736566514749,0.28912179,691.75,690.5,0.28964518]
[1736566519157,1.07322056,691.7,690.5,0.28964518]
[1736566520163,1.07322056,691.63,690.5,0.28964518]
[1736566521161,1.07322056,691.6,690.5,0.28964518]
[1736566522859,1.07322056,691.63,690.5,0.28964518]
[1736566523565,0.28912179,691.75,690.5,0.28964518]
[1736566523566,1.07322056,691.66,690.5,0.28964518]
[1736566525464,1.07322056,691.67,690.5,0.28964518]
[1736566526566,1.07322056,691.66,690.5,0.28964518]
[1736566528465,1.07322056,691.68,690.5,0.28964518]
[1736566529364,0.28912179,691.75,690.5,0.28964518]
[1736566529365,1.07322056,691.73,690.5,0.28964518]
[1736566530360,0.28912179,691.75,690.5,0.28964518]
[1736566530361,1.36234235,691.75,690.5,0.28964518]
[1736566531167,1.07322056,691.74,690.5,0.28964518]
[1736566531963,1.07322056,691.72,690.5,0.28964518]
[1736566532466,1.07322056,691.73,690.5,0.28964518]
[1736566533470,1.07322056,691.71,690.5,0.28964518]
[1736566534266,1.07322056,691.7,690.5,0.28964518]
[1736566535875,0.28912179,691.75,690.5,0.28964518]
[1736566546375,1.07322056,691.69,690.5,0.28964518]
[1736566547377,0.28912179,691.75,690.5,0.28964518]
[1736566547378,1.07322056,691.68,690.5,0.28964518]
[1736566548176,1.07322056,691.67,690.5,0.28964518]
[1736566550272,1.07322056,691.68,690.5,0.28964518]
[1736566551081,1.07322056,691.72,690.5,0.28964518]
[1736566552073,0.28912179,691.75,690.5,0.28964518]
[1736566562089,1.07322056,691.65,690.5,0.28964518]
[1736566562983,1.07322056,691.63,690.5,0.28964518]
[1736566563988,1.07322056,691.6,690.5,0.28964518]
[1736566565285,1.07322056,691.59,690.5,0.28964518]
[1736566568190,1.07322056,691.62,690.5,0.28964518]
[1736566568487,1.06155855,691.62,690.5,0.28964518]
[1736566569185,1.07322056,691.71,690.5,0.28964518]
[1736566569386,0.28914269,691.7,690.5,0.28964518]
[1736566621423,1.36236325,691.7,690.5,0.28964518]
[1736566622423,0.28914269,691.7,690.5,0.28964518]
[1736566689078,1.07772684,691.54,690.5,0.28964518]
[1736566689978,1.07772684,691.53,690.5,0.28964518]
[1736566691080,1.07772684,691.57,690.5,0.28964518]
[1736566693080,1.07772684,691.58,690.5,0.28964518]
[1736566693878,1.07772684,691.59,690.5,0.28964518]
[1736566694477,1.07772684,691.64,690.5,0.28964518]
[1736566695674,1.07772684,691.65,690.5,0.28964518]
[1736566696581,1.07772684,691.69,690.5,0.28964518]
[1736566697281,1.36687371,691.69,690.5,0.28964518]
[1736566697878,0.28914687,691.69,690.5,0.28964518]
[1736566700581,1.36687371,691.69,690.5,0.28964518]
[1736566701378,0.28914687,691.69,690.5,0.28964518]
[1736566702481,1.07772684,691.65,690.5,0.28964518]
[1736566703386,1.07772684,691.64,690.5,0.28964518]
[1736566704185,1.07772684,691.63,690.5,0.28964518]
[1736566705088,1.07772684,691.64,690.5,0.28964518]
[1736566706483,1.07772684,691.63,690.5,0.28964518]
[1736566711892,1.07772684,691.62,690.5,0.28964518]
[1736566712892,1.07772684,691.63,690.5,0.28964518]
[1736566715391,1.07772684,691.62,690.5,0.28964518]
[1736566716292,1.07772684,691.67,690.5,0.28964518]
[1736566718496,1.36687371,691.69,690.5,0.28964518]
[1736566719496,1.07772684,691.68,690.5,0.28964518]
[1736566722598,1.36687371,691.69,690.5,0.28964518]
[1736566723496,0.28914687,691.69,690.5,0.28964518]
[1736566724702,1.07772684,691.7,690.5,0.28964518]
[1736566725303,1.07772684,691.68,690.5,0.28964518]
[1736566726803,1.07772684,692.33,690.5,0.28964518]
[1736566727001,0.28888792,692.31,690.5,0.28964518]
[1736566736505,0.26563699,692.3,690.5,0.28964518]
[1736566737306,0.26563486,692.29,690.5,0.28964518]
[1736566737506,0.28888792,692.31,690.5,0.28964518]
[1736566737706,0.26563486,692.3,690.5,0.28964518]
[1736566737907,0.28889627,692.29,690.5,0.28964518]
[1736566738212,0.26563486,692.28,690.5,0.28964518]
[1736566738412,0.28890461,692.27,690.5,0.28964518]